bitfinex-derivatives/quotes_ETHF0:USTF0_20250612
["timestamp","ask_amount","ask_price","bid_price","bid_amount"]
[1749693751623,0.6098,2778.2,2778.1,0.71972]
[1749693752022,0.6098,2778.2,2778.0,0.71973]
[1749693753029,0.71973,2778.1,2777.9,3.21320083]
[1749693753229,0.71972,2778.1,2777.9,3.21320083]
[1749693753430,0.6098,2778.2,2778.0,16.704]
[1749693753631,0.71973,2778.1,2778.0,16.704]
[1749693754131,1.3295,2778.2,2778.0,16.704]
[1749693754829,1.32951,2778.2,2778.0,16.704]
[1749693755031,1.32951,2778.2,2778.0,17.42373]
[1749693755232,1.43981819,2778.1,2778.0,17.42373]
[1749693755732,1.50183539,2778.1,2778.0,17.42373]
[1749693756030,1.50183539,2778.1,2778.0,18.66103]
[1749693759032,3.92737,2778.7,2778.1,1.7993]
[1749693759233,0.71959,2778.6,2778.3,0.71966]
[1749693760029,0.71958,2778.7,2778.3,0.71966]
[1749693760228,6.63370017,2779.0,2778.2,8.8391]
[1749693760428,0.71958,2778.7,2778.4,0.71963]
[1749693760626,0.71958,2778.7,2778.5,16.702]
[1749693761231,1.2709,2778.9,2778.5,17.42161]
[1749693761434,0.71954,2778.8,2778.5,17.42161]
[1749693761734,1.2709,2778.9,2778.5,16.702]
[1749693762233,0.71956,2778.8,2778.5,16.702]
[1749693762427,2.87452017,2778.9,2778.7,0.71956]
[1749693762625,2.15500017,2778.9,2778.8,0.71954]
[1749693762832,4.11707017,2779.1,2778.9,0.71951]
[1749693763034,3.39760017,2779.1,2779.0,0.71948]
[1749693763536,3.39760017,2779.1,2778.9,0.7195]
[1749693763832,1.2426,2779.1,2778.9,0.7195]
[1749693765227,2.87443017,2779.3,2779.0,0.71949]
[1749693765731,0.71942,2779.3,2779.0,0.71947]
[1749693765935,3.2078,2779.4,2778.8,3.2078]
[1749693766133,3.2078,2779.4,2779.2,0.71942]
[1749693766333,1.91657,2779.5,2779.2,0.71942]
[1749693766732,1.1972,2779.5,2779.2,0.71941]
[1749693767036,1.1972,2779.5,2779.1,8.2188]
[1749693767233,1.1972,2779.5,2779.3,0.7194]
[1749693768243,1.91656,2779.5,2779.2,2.00622]
[1749693768630,1.1972,2779.5,2779.3,0.7194]
[1749693768834,1.91656,2779.5,2779.2,2.00621]
[1749693769036,0.14344448,2779.6,2779.5,0.71936]
[1749693769233,0.14344448,2779.6,2779.5,5.10536]
[1749693769633,0.14344448,2779.6,2779.5,6.33336]
[1749693771837,1.582392,2779.6,2779.5,6.33336]
[1749693773335,1.582392,2779.6,2779.5,23.02636]
[1749693773539,0.14344448,2779.6,2779.5,23.02636]
[1749693774336,3.2078,2780.4,2780.3,0.71915]
[1749693774531,4.64656815,2780.4,2780.3,17.41215]
[1749693774842,4.64656815,2780.4,2780.3,22.41215]
[1749693774843,1.43876815,2780.4,2780.3,22.41215]
[1749693775031,3.2078,2781.1,2780.5,1.79775]
[1749693775227,3.2078,2781.1,2781.0,0.71897]
[1749693775432,3.8297,2781.4,2781.3,0.71889]
[1749693775935,3.2078,2782.1,2781.8,0.71874]
[1749693776136,3.2078,2782.1,2781.8,17.40975]
[1749693776342,3.2078,2782.1,2781.4,1.2831]
[1749693776537,0.71885,2781.5,2781.0,4.4127]
[1749693776735,3.2078,2781.7,2780.5,1.80314083]
[1749693776736,0.71894,2781.1,2780.6,3.2078]
[1749693776930,3.2078,2781.2,2780.6,3.2078]
[1749693777431,0.6433,2781.6,2781.4,0.71885]
[1749693777631,0.6226,2781.9,2781.4,16.691]
[1749693777836,0.6226,2781.9,2781.8,0.71876]
[1749693778034,3.2078,2782.0,2781.9,0.71873]
[1749693778237,3.2078,2782.0,2781.5,0.6456]
[1749693778430,4.4242,2782.0,2781.5,0.6456]
[1749693778637,3.2078,2781.7,2781.4,16.688]
[1749693778840,1.839,2781.6,2780.8,21.7186]
[1749693779037,0.71894,2781.1,2780.8,22.43761]
[1749693779237,1.839,2781.6,2780.6,3.2078]
[1749693779238,0.71886,2781.4,2780.6,3.2078]
[1749693779444,3.92675,2781.1,2780.8,0.719]
[1749693779637,3.2078,2781.1,2780.6,3.2078]
[1749693779939,3.92682,2780.8,2780.7,0.2356]
[1749693780443,8.92682,2780.8,2780.7,0.2356]
[1749693780936,9.4332,2780.8,2779.8,24.2858]
[1749693781243,3.2078,2780.3,2780.0,0.71921]
[1749693781433,0.6098,2780.2,2780.0,0.71923]
[1749693781640,0.6098,2780.2,2780.1,0.7192]
[1749693781939,0.6098,2780.2,2779.9,0.00540083]
[1749693782138,0.6098,2780.2,2780.1,0.7192]
[1749693782335,0.00540083,2780.4,2780.3,0.71915]
[1749693782733,3.2078,2781.3,2781.0,0.71895]
[1749693782938,3.2078,2781.3,2780.6,16.705]
[1749693783139,3.2078,2781.3,2781.2,0.71892]
[1749693783341,1.2504,2781.4,2781.1,0.71893]
[1749693783539,1.96927,2781.4,2781.1,0.71893]
[1749693784545,1.2504,2781.4,2780.9,4.384]
[1749693784737,1.2504,2781.4,2781.2,0.71891]
[1749693784937,1.2504,2781.4,2780.9,4.384]
[1749693785132,1.3124172,2781.4,2780.7,5.6681]
[1749693785334,3.2078,2781.0,2780.4,0.7191]
[1749693785541,0.71908,2780.6,2780.3,0.71913]
[1749693785746,0.71912,2780.5,2780.2,0.71917]
[1749693785944,2.4708,2780.6,2780.0,3.2078]
[1749693786147,1.2295,2780.6,2780.0,3.2078]
[1749693786346,1.2295,2780.6,2780.5,0.7191]
[1749693786546,3.2078,2780.7,2780.6,0.71907]
[1749693786744,3.92685,2780.7,2780.4,0.71911]
[1749693786943,1.43865268,2780.6,2780.3,21.102]
[1749693787247,3.92685,2780.7,2780.4,0.71911]
[1749693787444,1.43864683,2780.6,2780.4,0.71911]
[1749693787746,0.71905,2780.7,2780.4,0.71911]
[1749693787939,5.6455,2781.0,2780.3,21.102]
[1749693788134,3.2078,2780.7,2780.1,22.9031]
[1749693788336,2.15767979,2780.6,2780.2,0.71917]
[1749693788539,0.7191,2780.5,2780.2,0.71917]
[1749693788740,3.2078,2780.7,2780.0,3.8509]
[1749693788941,1.8275,2780.4,2780.2,0.71916]
[1749693789141,0.5953,2780.4,2780.3,0.71915]
[1749693789343,3.2078,2780.7,2780.1,25.5014]
[1749693789542,1.43861118,2780.6,2780.5,0.7191]
[1749693789841,1.43861118,2780.6,2780.3,0.71915]
[1749693790042,1.43861118,2780.5,2780.2,0.6379]
[1749693790344,2.56391,2780.9,2780.5,0.71908]
[1749693790544,1.4386119,2780.8,2780.5,0.71908]
[1749693790747,1.4386119,2780.7,2780.3,1.179]
[1749693790947,1.4386119,2780.6,2780.5,0.71908]
[1749693792244,0.6127,2780.9,2780.6,0.71906]
[1749693792442,1.43847975,2780.8,2780.7,0.71905]
[1749693792651,1.43847975,2780.8,2780.6,0.71905]
[1749693792842,4.64627975,2780.7,2780.2,5.0219]
[1749693793048,0.71911,2780.5,2780.2,4.384]
[1749693793241,2.06667975,2780.4,2780.2,4.384]
[1749693793442,1.43847975,2780.3,2780.2,5.10317]
[1749693793741,1.43847975,2780.3,2780.2,4.384]
[1749693794147,1.43847975,2780.3,2780.2,5.10317]
[1749693795245,1.43847975,2780.3,2780.2,4.384]
[1749693795446,1.43847975,2780.3,2779.9,3.21320083]
[1749693795652,1.43847975,2780.2,2779.9,3.21320083]
[1749693795949,1.43847975,2780.1,2780.0,0.71923]
[1749693796346,1.43847975,2780.1,2780.0,1.93813]
[1749693797353,1.43847975,2780.1,2780.0,0.71923]
[1749693798050,1.43847975,2780.1,2780.0,1.93813]
[1749693799453,0.30307975,2780.1,2780.0,1.93813]
[1749693800155,0.30307975,2780.1,2780.0,6.93813]
[1749693800356,0.36509695,2780.1,2780.0,1.93813]
[1749693800658,3.2078,2781.0,2780.5,1.79774]
[1749693800958,2.15500017,2781.4,2780.9,5.00527]
[1749693801157,0.71878,2781.8,2781.4,0.71885]
[1749693801455,0.71877,2781.8,2781.4,0.71886]
[1749693801646,1.2453,2781.7,2781.4,0.71886]
[1749693801847,1.2453,2781.7,2781.5,0.71883]
[1749693802050,1.96409,2781.7,2781.3,20.69907083]
[1749693802252,1.2453,2781.7,2781.4,0.71885]
[1749693802856,1.2453,2781.7,2781.3,3.21320083]
[1749693803056,1.2453,2781.7,2781.4,0.71885]
[1749693803458,1.2453,2781.7,2781.3,3.21320083]
[1749693803659,2.15500017,2781.8,2781.3,3.21320083]
[1749693803858,2.15500017,2781.8,2781.4,0.71886]
[1749693804055,1.2453,2781.7,2781.4,0.71886]
[1749693804254,1.2453,2781.7,2781.3,3.21320083]
[1749693804456,1.9641,2781.7,2781.3,3.93209083]
[1749693805159,1.2453,2781.7,2781.4,0.71886]
[1749693805364,1.2453,2781.7,2781.3,3.21320083]
[1749693805664,1.2453,2781.7,2781.5,0.71883]
[1749693805961,1.2453,2781.7,2781.4,0.71885]
[1749693806257,1.2453,2781.7,2781.3,3.21320083]
[1749693806461,1.33693,2781.6,2781.3,3.21320083]
[1749693806662,0.71886,2781.4,2781.3,3.21320083]
[1749693806963,0.604,2781.5,2781.3,3.21320083]
[1749693807159,2.15500017,2781.6,2781.5,0.71884]
[1749693807364,2.15500017,2781.7,2781.6,0.71881]
[1749693808063,1.2221,2782.0,2781.6,7.6058]
[1749693808263,2.15500017,2782.1,2782.0,0.71871]
[1749693808453,2.16465213,2782.3,2781.9,3.2078]
[1749693808758,2.15500017,2782.0,2781.5,19.9778]
[1749693808959,2.15500017,2782.0,2781.9,0.71874]
[1749693809163,2.15500017,2782.1,2782.0,0.71871]
[1749693809362,2.16465213,2782.3,2782.0,0.6317]
[1749693809566,0.00965196,2782.3,2782.2,3.92646]
[1749693811060,0.00965196,2782.3,2782.2,3.2078]
[1749693811365,0.00965196,2782.3,2782.2,3.92646]
[1749693811660,0.00965196,2782.3,2782.1,16.787]
[1749693811866,0.00965196,2782.3,2782.2,3.92646]
[1749693812062,0.00965196,2782.3,2782.2,0.71866]
[1749693812262,0.00965196,2782.3,2782.1,19.9948]
[1749693812567,0.00965196,2782.3,2782.2,0.71866]
[1749693812769,1.44738347,2782.3,2782.2,0.71866]
[1749693812958,2.16601347,2782.3,2782.1,19.9948]
[1749693813160,1.43773151,2782.2,2782.1,20.71348]
[1749693813563,1.43773151,2782.2,2781.8,3.8231]
[1749693813761,4.64553151,2782.1,2781.4,8.2361]
[1749693813964,0.71884,2781.5,2781.4,3.2078]
[1749693814158,2.15657151,2781.5,2781.4,3.2078]
[1749693814362,2.1570185,2781.5,2781.4,3.2078]
[1749693814667,7.1570185,2781.5,2781.4,3.2078]
[1749693814965,0.71886,2781.4,2781.3,0.00540083]
[1749693815168,3.3869385,2781.4,2781.3,0.00540083]
[1749693815671,1.4381785,2781.4,2781.3,0.00540083]
[1749693815962,2.1570385,2781.4,2781.3,0.00540083]
[1749693816173,1.4381785,2781.4,2781.3,0.00540083]
[1749693816463,1.4381785,2781.4,2781.3,0.72429083]
[1749693816869,1.4381785,2781.8,2781.4,0.71885]
[1749693817070,1.43801107,2781.7,2781.6,3.2078]
[1749693817963,2.15680107,2781.7,2781.6,3.2078]
[1749693818361,1.43801107,2781.7,2781.4,3.2078]
[1749693818568,2.15684107,2781.6,2781.4,3.2078]
[1749693818764,1.43801107,2781.5,2781.4,3.2078]
[1749693818968,1.43801107,2781.5,2781.4,3.92666]
[1749693819170,1.1818,2782.0,2781.8,0.71876]
[1749693819369,1.43798463,2781.9,2781.7,3.2078]
[1749693819564,1.43798463,2781.8,2781.7,3.92658]
[1749693819960,1.43798463,2781.8,2781.7,20.77358]
[1749693820366,1.43798463,2781.8,2781.7,20.0548]
[1749693821261,2.15674463,2781.8,2781.7,20.0548]
[1749693821466,1.43798463,2781.8,2781.7,20.0548]
[1749693822265,0.72829196,2782.3,2781.8,0.71874]
[1749693822461,1.43788472,2782.1,2782.0,3.2078]
[1749693822660,1.43788472,2782.1,2782.0,3.92651]
[1749693822862,1.43788472,2782.1,2782.0,3.2078]
[1749693823066,1.43788472,2782.1,2782.0,3.92651]
[1749693823470,0.00965196,2782.3,2782.0,3.92651]
[1749693823776,0.00965196,2782.3,2782.0,3.2078]
[1749693823975,0.00965196,2782.3,2782.0,5.1772]
[1749693824264,0.72829196,2782.3,2782.0,4.4585]
[1749693824470,0.7806772,2782.2,2782.1,16.841]
[1749693824866,0.0620172,2782.2,2782.1,16.841]
[1749693825068,1.49981207,2782.2,2782.1,16.841]
[1749693825268,2.21847207,2782.2,2782.0,20.76751]
[1749693825570,1.43781198,2782.1,2782.0,20.76751]
[1749693825771,1.43781198,2782.1,2782.0,3.2078]
[1749693826075,2.15649198,2782.1,2782.0,3.2078]
[1749693826368,1.43781198,2782.1,2782.0,3.2078]
[1749693826568,1.43781198,2782.1,2782.0,3.92651]
[1749693826875,1.43781198,2782.1,2782.0,3.2078]
[1749693827076,1.43781198,2782.1,2782.0,3.92651]
[1749693828177,2.15649198,2782.1,2782.0,3.2078]
[1749693828378,1.43781198,2782.1,2782.0,20.0368]
[1749693828671,1.43781198,2782.1,2782.0,3.2078]
[1749693828875,1.43781198,2782.1,2782.0,20.0398]
[1749693829175,1.43781198,2782.1,2782.0,20.75851]
[1749693830078,0.00965196,2782.3,2782.1,0.71868]
[1749693830378,1.43780414,2782.2,2782.1,0.71868]
[1749693830577,2.15646414,2782.2,2782.0,20.75849]
[1749693830780,1.49982134,2782.1,2782.0,20.75849]
[1749693831078,1.49982134,2782.1,2782.0,3.92649]
[1749693831277,1.49982134,2782.1,2782.0,3.92651]
[1749693832084,1.49982134,2782.1,2782.0,5.14851]
[1749693833083,1.49982134,2782.1,2782.0,26.44151]
[1749693833976,1.49982134,2782.1,2782.0,21.2438]
[1749693834176,1.49982134,2782.1,2782.0,21.96251]
[1749693834577,1.49982134,2782.1,2782.0,3.2078]
[1749693835079,1.49982134,2782.1,2782.0,20.0208]
[1749693835278,1.49982134,2782.1,2782.0,3.92651]
[1749693835478,1.49982134,2782.1,2782.0,20.0198]
[1749693835678,1.49982134,2782.1,2782.0,20.73851]
[1749693835881,2.21850134,2782.1,2782.0,3.2078]
[1749693836080,2.85720134,2782.1,2782.0,3.2078]
[1749693837274,4.13000134,2782.1,2782.0,3.2078]
[1749693837482,0.71873,2781.9,2781.8,0.71874]
[1749693837687,1.43780414,2781.9,2781.8,0.71874]
[1749693837886,1.43780414,2781.9,2781.7,3.2078]
[1749693838184,2.15656414,2781.8,2781.7,3.2078]
[1749693838578,0.71881,2781.7,2781.5,0.71882]
[1749693838883,1.4380743,2781.6,2781.4,3.2078]
[1749693839081,0.71886,2781.4,2781.3,0.00540083]
[1749693839278,2.1569343,2781.4,2781.3,0.00540083]
[1749693839585,10.59403447,2781.4,2781.3,0.00540083]
[1749693839782,0.71892,2781.2,2781.1,3.2078]
[1749693839980,2.1569943,2781.2,2781.1,3.2078]
[1749693842087,3.4409943,2781.2,2781.1,3.2078]
[1749693842390,0.71897,2781.0,2780.9,0.00540083]
[1749693842585,2.1570443,2781.0,2780.9,0.00540083]
[1749693842887,2.1570443,2781.0,2780.5,3.2078]
[1749693842888,0.71907,2780.6,2780.5,3.2078]
[1749693843086,2.1571443,2780.6,2780.5,3.2078]
[1749693843287,7.1571443,2780.6,2780.5,3.2078]
[1749693843487,2.1571443,2780.6,2780.5,3.2078]
[1749693843787,0.71916,2780.3,2780.1,3.92699]
[1749693843990,1.4380743,2780.2,2780.1,3.927]
[1749693844191,2.1572443,2780.2,2780.1,3.2078]
[1749693844686,2.15043304,2780.8,2780.1,12.6828]
[1749693844892,1.24,2781.5,2781.3,0.71889]
[1749693845088,0.7189,2781.3,2781.0,3.2078]
[1749693845389,1.223,2781.5,2781.2,0.7189]
[1749693845582,0.72427083,2781.4,2781.2,0.7189]
[1749693845785,0.71892,2781.2,2781.1,0.6426]
[1749693846288,0.71892,2781.2,2781.1,1.36154]
[1749693846484,0.71892,2781.2,2781.1,0.6426]
[1749693846890,0.7189,2781.3,2781.1,0.6426]
[1749693847288,0.72428083,2781.4,2781.2,0.7189]
[1749693847483,0.00540083,2781.4,2781.2,0.7189]
[1749693847689,0.00540083,2781.4,2781.3,0.71889]
[1749693848091,0.00540083,2781.4,2781.2,1.2565]
[1749693848592,0.00540083,2781.4,2781.3,0.71889]
[1749693848984,0.00540083,2781.4,2781.3,3.92669]
[1749693850194,0.72426083,2781.4,2781.3,3.2078]
[1749693850690,0.72426083,2781.4,2781.1,5.83653]
[1749693850691,0.00540083,2781.4,2781.1,0.6426]
[1749693850884,0.71889,2781.3,2781.1,1.36153]
[1749693851082,0.00540083,2781.4,2781.2,3.2078]
[1749693851281,0.71891,2781.3,2781.2,3.2078]
[1749693851485,0.71892,2781.2,2781.1,0.6426]
[1749693851683,0.00540083,2781.4,2780.9,3.2078]
[1749693851684,0.71897,2781.0,2780.9,3.2078]
[1749693852090,0.00540083,2781.4,2781.2,0.7189]
[1749693852290,0.00540083,2781.4,2781.3,0.71889]
[1749693852494,0.00540083,2781.4,2781.3,2.52839]
[1749693852895,0.72426083,2781.4,2781.3,1.8095]
[1749693853490,0.00540083,2781.4,2780.9,3.92678]
[1749693853886,0.71896,2781.1,2780.9,3.92678]
[1749693854195,1.89710083,2781.4,2781.0,0.71896]
[1749693854492,1.89710083,2781.4,2780.9,4.4599]
[1749693854688,0.62380083,2781.4,2781.2,0.71889]
[1749693854891,0.00540083,2781.4,2781.2,3.2078]
[1749693855289,0.72426083,2781.4,2781.3,0.6499]
[1749693855496,0.00540083,2781.4,2781.2,3.2078]
[1749693855694,0.71889,2781.3,2781.2,3.2078]
[1749693855895,0.72428083,2781.4,2781.3,0.71889]
[1749693856098,0.00540083,2781.4,2781.3,0.71889]
[1749693856500,0.00540083,2781.4,2781.3,1.99199]
[1749693856692,1.44361897,2781.4,2781.3,1.2731]
[1749693856892,2.16247897,2781.4,2781.2,3.2078]
[1749693857197,0.00540083,2781.4,2781.3,0.71889]
[1749693857394,1.44362721,2781.4,2781.3,0.71889]
[1749693857589,0.71889,2781.3,2781.2,3.2078]
[1749693857794,2.15711638,2781.3,2781.2,3.92672]
[1749693858194,2.15711638,2781.3,2781.2,0.71892]
[1749693858496,0.71894,2781.1,2781.0,0.6499]
[1749693858798,0.71897,2781.0,2780.9,3.2078]
[1749693859299,2.15719638,2781.0,2780.9,3.2078]
[1749693859497,6.43822638,2781.0,2780.5,3.2078]
[1749693859696,4.4044,2781.2,2780.5,3.2078]
[1749693859697,0.71907,2780.6,2780.5,3.2078]
[1749693859998,1.43822638,2780.9,2780.5,3.2078]
[1749693859999,1.43822638,2780.8,2780.5,3.2078]
[1749693860298,2.15727638,2780.7,2780.6,0.71907]
[1749693860496,1.43822638,2780.7,2780.5,3.2078]
[1749693860698,1.43822638,2780.7,2780.6,0.71907]
[1749693861000,1.43852364,2780.7,2780.6,1.93645]
[1749693861296,2.15758364,2780.7,2780.5,3.92688]
[1749693861498,1.43852364,2780.6,2780.5,3.92688]
[1749693861693,5.83323,2781.2,2780.5,3.9269]
[1749693861889,1.43844022,2781.1,2781.0,0.71897]
[1749693862293,1.43844022,2781.1,2781.0,1.36637]
[1749693862599,0.0620172,2781.3,2781.2,0.71892]
[1749693862799,1.50013576,2781.3,2781.2,3.92672]
[1749693869503,1.50013576,2781.3,2781.2,25.34372]
[1749693870203,1.50013576,2781.3,2781.2,25.34172]
[1749693870399,0.0620172,2781.3,2781.2,25.34172]
[1749693872805,0.0620172,2781.3,2781.2,8.43772]
[1749693873107,1.50008268,2781.3,2781.2,25.32272]
[1749693873604,0.0620172,2781.3,2781.2,25.32272]
[1749693874507,1.50007039,2781.3,2781.2,3.92672]
[1749693874697,1.50007039,2781.3,2781.2,25.32672]
[1749693875007,1.50007039,2781.3,2781.2,25.32572]
[1749693875597,2.21896039,2781.3,2781.2,7.7188]
[1749693875802,1.50007039,2781.3,2781.2,24.6108]
[1749693876006,1.50007039,2781.3,2781.2,3.92672]
[1749693878209,1.50007039,2781.3,2781.2,5.15442]
[1749693878801,0.0620172,2781.3,2781.2,5.15442]
[1749693880101,0.0620172,2781.3,2781.2,5.20387185]
[1749693880902,8.3e-07,2781.4,2781.3,0.71889]
[1749693881101,8.3e-07,2781.4,2781.3,6.46409]
[1749693881302,8.3e-07,2781.4,2781.3,52.26409]
[1749693882014,8.3e-07,2781.4,2781.3,52.31354185]
[1749693882210,0.60745196,2782.3,2782.2,0.71866]
[1749693882404,2.04526664,2782.3,2782.2,0.71866]
[1749693883208,2.04526664,2782.3,2782.2,0.76811185]
[1749693886210,1.44746664,2782.3,2782.2,0.76811185]
[1749693887909,1.44746664,2782.3,2782.2,0.04945185]
[1749693888108,1.44746664,2782.3,2782.2,17.61211185]
[1749693888503,2.71366664,2782.3,2782.2,16.88745185]
[1749693888717,2.71366664,2782.3,2782.2,17.60611185]
[1749693889413,2.71366664,2782.3,2782.2,0.76811185]
[1749693889601,2.77568384,2782.3,2782.2,17.60411185]
[1749693889804,2.77568384,2782.3,2782.2,0.76811185]
[1749693890115,1.50948384,2782.3,2782.2,0.76811185]
[1749693892814,1.50948384,2782.3,2782.2,5.24611185]
[1749693893011,0.65964384,2782.3,2782.2,7.12571185]
[1749693893211,0.0620172,2782.3,2782.2,7.12571185]
[1749693894309,3.35953304,2783.9,2782.6,1.79639]
[1749693894513,3.2078,2783.7,2783.3,3.2078]
[1749693894713,1.2091,2783.6,2783.3,20.1698]
[1749693895014,0.71832,2783.5,2783.4,0.04945185]
[1749693895221,1.36012,2783.5,2783.4,0.04945185]
[1749693895406,0.71837,2783.3,2783.2,0.00539113]
[1749693895818,5.71837,2783.3,2783.2,0.00539113]
[1749693896014,1.30897,2783.3,2783.2,0.00539113]
[1749693896227,0.5906,2783.3,2783.2,0.00539113]
[1749693896420,1.30897,2783.3,2783.2,0.00539113]
[1749693896622,1.8118,2783.3,2783.2,0.72379113]
[1749693896824,1.8118,2783.3,2783.2,0.00539113]
[1749693897521,1.8118,2783.3,2783.2,0.72379113]
[1749693898120,1.8118,2783.3,2783.2,0.00539113]
[1749693898720,0.6418,2783.5,2783.2,0.00539113]
[1749693898918,0.71837,2783.4,2783.2,0.00539113]
[1749693899124,1.89087,2783.3,2783.2,0.00539113]
[1749693900828,1.1725,2783.3,2783.2,0.72379113]
[1749693901231,3.2078,2783.9,2783.2,0.00539113]
[1749693901431,0.6263,2783.8,2783.7,0.71826]
[1749693901634,0.6263,2783.8,2783.6,0.7183]
[1749693901828,0.6263,2783.8,2783.7,0.71827]
[1749693902129,0.71827,2783.7,2783.5,0.71832]
[1749693902330,1.34456,2783.8,2783.4,3.2078]
[1749693902630,0.6263,2783.8,2783.4,3.2078]
[1749693902826,0.71828,2783.7,2783.4,3.2078]
[1749693903133,0.71831,2783.6,2783.4,3.2078]
[1749693903334,0.71829,2783.7,2783.5,0.7183]
[1749693903630,3.2078,2783.7,2783.2,0.72378113]
[1749693903832,0.71837,2783.3,2783.2,0.00539113]
[1749693904231,5.71837,2783.3,2783.2,0.00539113]
[1749693904432,6.95097,2783.3,2783.2,0.00539113]
[1749693905030,8.35392394,2783.3,2783.2,0.00539113]
[1749693905230,0.71853,2782.7,2782.6,3.2078]
[1749693905433,3.02855,2783.3,2782.7,0.71851]
[1749693905635,1.40315505,2783.2,2782.7,0.71852]
[1749693905836,0.71849,2782.9,2782.8,0.7185]
[1749693906032,2.12164505,2782.9,2782.8,0.7185]
[1749693906432,1.40315505,2782.9,2782.8,0.7185]
[1749693906632,1.4033566,2783.0,2782.7,0.71852]
[1749693906836,0.71853,2782.7,2782.6,3.93173113]
[1749693907137,0.72378878,2783.1,2783.0,0.71845]
[1749693907334,1.40911857,2783.1,2782.9,3.2078]
[1749693907637,1.40375979,2783.0,2782.7,0.71852]
[1749693907836,1.40375979,2782.9,2782.7,0.71852]
[1749693908035,1.40375979,2782.8,2782.7,0.71853]
[1749693908237,0.7185,2782.8,2782.7,0.71853]
[1749693908737,1.40375979,2782.8,2782.6,3.93174113]
[1749693909037,0.6353,2782.8,2782.7,0.71853]
[1749693909535,2.75869823,2782.8,2782.7,0.71853]
[1749693909837,0.71853,2782.7,2782.6,3.21319113]
[1749693910136,2.12342823,2782.7,2782.6,0.00539113]
[1749693910337,0.71863,2782.3,2782.2,3.2078]
[1749693910530,2.12352823,2782.3,2782.2,3.2078]
[1749693910938,0.71863,2782.3,2782.2,3.2078]
[1749693911131,2.12457754,2782.3,2782.2,3.2078]
[1749693911337,1.40594754,2782.3,2782.2,3.2078]
[1749693911529,1.40594754,2782.3,2782.2,3.92646]
[1749693912035,0.7185,2782.9,2782.7,0.71851]
[1749693912238,1.40472692,2782.8,2782.7,0.71851]
[1749693913636,0.00535878,2783.1,2783.0,0.71845]
[1749693913934,1.41015594,2783.1,2783.0,3.92625]
[1749693914642,1.41015594,2783.1,2783.0,3.2078]
[1749693915139,1.41015594,2783.1,2783.0,3.92625]
[1749693915639,1.41015594,2783.1,2783.0,3.2078]
[1749693915942,2.12857594,2783.1,2783.0,3.2078]
[1749693916743,1.41015594,2783.1,2783.0,3.92625]
[1749693917143,1.41015594,2783.1,2783.0,3.2078]
[1749693917334,1.41015594,2783.1,2783.0,3.92625]
[1749693917534,1.41015594,2783.1,2783.0,4.52635]
[1749693917939,0.00535878,2783.1,2783.0,4.52635]
[1749693921051,0.06737598,2783.1,2783.0,4.52635]
[1749693921544,0.06737598,2783.1,2783.0,3.2078]
[1749693921849,0.06737598,2783.1,2783.0,3.92625]
[1749693922547,0.06737598,2783.1,2783.0,3.2078]
[1749693922749,0.06737598,2783.1,2783.0,3.92625]
[1749693922946,1.47138236,2783.1,2783.0,3.92625]
[1749693923652,0.06737598,2783.1,2783.0,3.92625]
[1749693923947,0.06737598,2783.1,2783.0,13.45525]
[1749693924347,0.06737598,2783.1,2783.0,8.45525]
[1749693926646,0.14344448,2784.1,2783.9,0.71821]
[1749693926845,1.40376269,2784.0,2783.9,0.71821]
[1749693927150,1.40376269,2784.0,2783.8,0.71824]
[1749693927343,2.12199269,2783.9,2783.7,3.2078]
[1749693927549,2.12200269,2783.8,2783.7,3.2078]
[1749693927748,2.12200269,2783.8,2783.5,0.72371113]
[1749693927948,2.04316269,2783.7,2783.6,0.7183]
[1749693930649,1.40376269,2783.7,2783.6,0.7183]
[1749693932150,1.40376269,2783.7,2783.5,3.93150113]
[1749693932356,1.40376269,2783.6,2783.5,3.21319113]
[1749693932551,1.40376269,2783.6,2783.5,0.72371113]
[1749693933043,1.40376269,2783.6,2783.5,3.93151113]
[1749693934350,1.3679,2784.0,2783.8,0.71823]
[1749693934546,1.40199235,2783.9,2783.8,0.71823]
[1749693936954,0.14883561,2784.1,2783.8,26.397]
[1749693937253,0.14883561,2784.1,2784.0,0.71819]
[1749693937752,0.14883561,2784.1,2783.9,0.5947]
[1749693937753,0.86702561,2784.1,2783.9,0.5947]
[1749693937945,0.86701561,2784.1,2783.8,3.92603]
[1749693938148,0.86700561,2784.1,2783.8,3.92603]
[1749693938355,0.14883561,2784.1,2783.8,3.2078]
[1749693938557,0.14883561,2784.1,2783.9,0.7182]
[1749693939058,0.14883561,2784.1,2783.8,3.2078]
[1749693939249,0.14883561,2784.1,2783.9,0.7182]
[1749693939853,0.71823,2783.9,2783.7,0.71827]
[1749693940054,0.14883561,2784.1,2783.6,21.449]
[1749693940055,0.14883561,2784.1,2783.9,0.7182]
[1749693940247,0.76363561,2784.1,2783.9,0.7182]
[1749693940445,0.76363561,2784.1,2784.0,0.71819]
[1749693940847,0.76363561,2784.1,2783.8,3.2078]
[1749693941059,0.71822,2783.9,2783.8,3.2078]
[1749693941356,2.0161,2784.0,2783.8,3.92603]
[1749693941751,2.0161,2784.0,2783.8,3.2078]
[1749693941956,2.0161,2784.0,2783.8,3.92604]
[1749693942556,2.0161,2784.0,2783.8,3.2078]
[1749693942753,2.0161,2784.0,2783.8,3.92603]
[1749693943054,1.2979,2784.0,2783.8,3.92603]
[1749693943355,2.01609,2784.0,2783.8,3.92603]
[1749693943558,2.0161,2784.0,2783.8,3.92603]
[1749693944459,0.71822,2783.9,2783.8,3.92603]
[1749693944652,2.0161,2784.0,2783.8,3.92603]
[1749693944853,0.71822,2783.9,2783.8,3.92603]
[1749693945149,2.01611,2784.0,2783.8,3.2078]
[1749693945459,0.71826,2783.8,2783.7,16.905]
[1749693945959,0.71823,2783.9,2783.8,0.71824]
[1749693946458,0.71823,2783.9,2783.7,17.62325]
[1749693946758,0.71823,2783.9,2783.8,0.71824]
[1749693947155,0.71824,2783.8,2783.7,16.905]
[1749693947753,1.2979,2784.0,2783.7,17.62327]